bitfinex-derivatives/quotes_ETHF0:USTF0_20250807
["timestamp","ask_amount","ask_price","bid_price","bid_amount"]
[1754579818900,0.7067,3822.5,3822.4,0.81888]
[1754579819099,0.7067,3822.5,3822.1,1.7279]
[1754579819100,1.0044,3822.3,3822.2,0.81891]
[1754579819306,0.9695,3822.2,3822.1,0.52312]
[1754579819511,1.6762,3822.2,3822.1,0.52312]
[1754579819808,1.384,3821.9,3821.8,1.92237]
[1754579820105,1.6762,3821.9,3821.8,0.7804]
[1754579820305,1.6762,3821.9,3821.2,0.52325]
[1754579820306,0.4703,3821.3,3821.2,0.52325]
[1754579820515,0.9695,3821.3,3821.2,2.20435]
[1754579820707,0.4843,3822.0,3821.9,0.9047]
[1754579820905,0.52325,3821.3,3821.0,0.52327]
[1754579821203,1.384,3820.9,3820.8,2.20441]
[1754579821404,0.90983841,3821.5,3821.4,1.3992]
[1754579821712,2.10633841,3821.8,3821.7,1.6811]
[1754579821910,1.69183841,3821.8,3821.7,1.6811]
[1754579822111,1.384,3821.8,3821.7,1.6811]
[1754579822507,0.52318,3821.7,3821.3,0.702]
[1754579822701,1.384,3821.5,3821.4,1.62661]
[1754579822907,1.384,3821.5,3821.4,1.90851]
[1754579823306,1.384,3821.5,3821.4,2.20431]
[1754579823600,0.9695,3821.8,3821.7,2.20428]
[1754579823805,1.384,3821.8,3821.7,2.20428]
[1754579824009,1.384,3822.3,3822.2,0.52311]
[1754579824202,1.384,3822.3,3822.2,1.92231]
[1754579824412,0.72233841,3822.7,3821.8,0.9047]
[1754579824413,0.6718,3821.9,3821.8,0.9047]
[1754579824609,0.2977,3821.8,3821.6,0.81899]
[1754579824814,1.6762,3821.7,3821.6,1.00919]
[1754579825010,1.6762,3821.7,3821.6,1.30359]
[1754579825312,1.384,3821.7,3821.6,2.20429]
[1754579825706,1.6762,3821.7,3821.6,0.1902]
[1754579825909,0.7625,3821.6,3821.5,0.52321]
[1754579826213,1.384,3821.6,3821.5,2.20431]
[1754579826415,0.964,3822.0,3821.9,1.30356]
[1754579827113,1.6762,3822.0,3821.9,0.486]
[1754579827815,0.6718,3822.0,3821.9,1.6811]
[1754579828016,0.4703,3822.0,3821.9,1.6811]
[1754579828216,1.384,3822.3,3822.2,2.20421]
[1754579828408,0.8988,3822.3,3822.2,2.20421]
[1754579828717,1.0863,3822.3,3822.2,2.20421]
[1754579828907,0.4703,3822.3,3822.2,2.20421]
[1754579829108,0.768,3822.5,3822.4,2.20419]
[1754579829308,1.384,3822.5,3822.4,2.20419]
[1754579829610,1.6762,3822.5,3822.4,1.3992]
[1754579829809,1.384,3822.5,3822.4,1.6811]
[1754579830517,2.30753,3823.0,3822.5,1.30769]
[1754579830518,1.7122,3823.0,3822.5,1.30769]
[1754579830817,2.384,3823.0,3822.9,1.6811]
[1754579831205,2.6762,3823.0,3822.9,1.6811]
[1754579831609,2.6762,3823.0,3822.9,0.7804]
[1754579831813,2.6762,3823.0,3822.9,0.486]
[1754579832009,2.6762,3823.0,3822.6,1.10075]
[1754579832215,1.6762,3822.7,3822.6,0.486]
[1754579832917,1.7205,3822.5,3822.4,1.28968]
[1754579833119,1.7205,3822.5,3822.4,1.71248]
[1754579833311,1.7205,3822.5,3822.4,1.90818]
[1754579833716,1.7205,3822.5,3822.4,2.19148]
[1754579834411,0.4849,3822.9,3822.8,1.00203]
[1754579834617,1.4276,3822.9,3822.8,0.9552]
[1754579835012,1.4276,3822.9,3822.8,1.66]
[1754579835722,1.0,3823.0,3822.9,2.18302]
[1754579839723,2.7272,3823.0,3822.9,2.18302]
[1754579839919,2.4276,3823.0,3822.9,2.18302]
[1754579840317,1.4801,3823.0,3822.9,2.18302]
[1754579840516,1.0,3823.0,3822.9,2.18302]
[1754579842414,0.52282,3824.4,3822.1,1.51640388]
[1754579842415,0.6785,3824.2,3824.1,0.52285]
[1754579842616,0.72233841,3824.5,3824.4,0.71781]
[1754579842825,0.9781,3824.9,3824.8,0.477]
[1754579843119,0.9781,3824.9,3824.8,0.7582]
[1754579843319,1.7272,3824.9,3824.8,0.7582]
[1754579843523,0.6785,3824.5,3824.4,0.5228]
[1754579843719,1.7272,3824.5,3824.4,0.5228]
[1754579843921,0.6785,3824.3,3824.2,0.80483]
[1754579844126,1.4276,3824.3,3824.2,1.89953]
[1754579844324,1.4276,3824.3,3824.2,2.18283]
[1754579844526,0.9725,3824.3,3824.2,2.18283]
[1754579845030,0.6785,3823.9,3823.8,0.52288]
[1754579845322,1.7272,3823.9,3823.8,0.52288]
[1754579845527,1.4276,3823.9,3823.8,2.18288]
[1754579846128,1.4276,3824.3,3824.2,2.18284]
[1754579846831,1.2471,3824.2,3824.1,0.52286]
[1754579847128,1.4276,3824.2,3824.1,1.47676]
[1754579847320,0.9829,3824.5,3824.4,0.52282]
[1754579847628,1.7272,3824.5,3824.4,2.18282]
[1754579847830,1.7272,3824.5,3824.4,1.89952]
[1754579848031,1.7272,3824.5,3824.4,1.47672]
[1754579848521,1.7272,3824.5,3824.4,0.9539]
[1754579849019,1.7272,3824.5,3824.4,0.7582]
[1754579849218,1.7272,3824.5,3824.4,0.477]
[1754579849830,0.6785,3824.3,3824.2,0.52284]
[1754579850030,1.7272,3824.3,3824.2,0.52284]
[1754579851530,0.4801,3823.5,3823.4,2.18295]
[1754579851727,1.4276,3823.5,3823.4,2.18295]
[1754579851925,1.7272,3823.5,3823.4,1.28115]
[1754579852127,1.7272,3823.5,3823.4,0.80495]
[1754579852327,1.7272,3823.5,3823.4,1.28115]
[1754579852524,1.7272,3823.5,3823.4,1.89965]
[1754579852726,1.4276,3823.5,3823.4,0.52295]
[1754579852924,1.7272,3823.5,3823.4,0.52295]
[1754579853120,0.5936,3823.4,3823.1,0.4228]
[1754579853320,0.6785,3823.5,3823.0,0.2833]
[1754579853321,1.7272,3823.1,3823.0,1.28121]
[1754579853531,1.7272,3823.1,3823.0,1.47691]
[1754579854033,1.7272,3823.1,3823.0,1.70401]
[1754579854226,1.4276,3823.1,3823.0,2.18301]
[1754579854933,0.7741,3823.1,3823.0,2.18301]
[1754579855131,0.9725,3823.5,3823.4,1.66]
[1754579855327,0.1909,3823.5,3823.4,2.18295]
[1754579855928,0.9427,3823.8,3823.7,0.4762]
[1754579856130,1.4276,3823.8,3823.7,1.66]
[1754579856433,0.6785,3823.2,3823.1,0.4762]
[1754579856631,1.7272,3823.2,3823.1,0.7582]
[1754579857533,1.4276,3823.2,3823.1,1.66]
[1754579857931,1.7272,3823.2,3823.1,0.477]
[1754579858230,1.0487,3823.1,3822.8,0.7061]
[1754579858431,1.4276,3822.9,3822.8,2.18304]
[1754579858636,1.24510841,3824.8,3823.9,1.0947]
[1754579858932,0.1909,3824.3,3824.2,2.18285]
[1754579859235,1.4276,3824.3,3824.2,2.18285]
[1754579860429,0.9725,3824.6,3824.5,0.99981]
[1754579860630,1.24500841,3825.6,3824.9,1.47795]
[1754579860631,0.7443,3825.0,3824.9,1.47795]
[1754579860932,0.7443,3825.0,3824.9,2.18275]
[1754579860933,0.2892,3825.0,3824.9,2.18275]
[1754579861130,0.72233841,3825.6,3824.9,0.9881]
[1754579861328,1.4276,3825.6,3825.5,1.28087]
[1754579861531,1.7272,3825.6,3825.5,1.28087]
[1754579862535,1.7272,3825.6,3825.5,0.7582]
[1754579863526,0.6785,3825.6,3825.3,0.52269]
[1754579863833,0.1936,3825.0,3824.7,0.2865]
[1754579864034,1.4137,3824.7,3824.6,2.2318]
[1754579864933,0.7279,3824.7,3824.6,1.5369]
[1754579865331,0.2761,3824.7,3824.6,1.5369]
[1754579865539,0.7279,3825.1,3825.0,0.2865]
[1754579865737,1.0246,3825.1,3825.0,0.2865]
[1754579865933,0.52271,3825.3,3824.6,0.52278]
[1754579866143,0.7279,3824.7,3824.6,0.8093]
[1754579866547,0.7279,3824.7,3824.6,0.2865]
[1754579866841,1.0246,3824.7,3824.6,0.2865]
[1754579867039,0.7485,3824.7,3824.4,0.52282]
[1754579867224,1.30655,3825.9,3824.4,0.52282]
[1754579867225,1.0246,3825.0,3824.4,0.52282]
[1754579867430,1.4137,3824.5,3824.4,2.23182]
[1754579868428,1.4137,3824.5,3824.4,1.92752]
[1754579868625,0.6858,3824.5,3824.3,0.52282]
[1754579868923,0.6858,3824.2,3824.1,0.2865]
[1754579869125,1.7104,3824.2,3824.1,0.2865]
[1754579869541,1.7104,3824.2,3824.1,1.30165]
[1754579869736,1.7104,3824.2,3823.9,0.52288]
[1754579869942,1.4137,3823.8,3823.7,1.4225]
[1754579870435,1.4137,3823.8,3823.7,1.709]
[1754579870636,0.9619,3823.8,3823.7,1.709]
[1754579871040,0.9619,3823.8,3823.7,2.23192]
[1754579871332,0.2761,3825.1,3824.8,0.52276]
[1754579871532,0.9619,3824.9,3824.8,2.23176]
[1754579871736,0.2761,3824.9,3824.8,1.53686]
[1754579872037,1.0246,3824.8,3824.7,0.52277]
[1754579872339,0.7279,3824.8,3824.7,0.80927]
[1754579872638,0.7279,3824.8,3824.7,1.53687]
[1754579873330,1.45023841,3825.4,3825.3,0.8092]
[1754579873532,1.0246,3825.4,3825.3,0.8092]
[1754579873938,1.52262,3826.0,3825.0,0.7276]
[1754579874240,1.0,3826.0,3825.0,1.0141]
[1754579874536,1.0246,3825.7,3825.0,1.0141]
[1754579874740,1.0246,3825.6,3825.2,0.8092]
[1754579874932,0.6858,3825.3,3825.2,0.9997]
[1754579875133,1.4137,3825.3,3825.2,1.3015]
[1754579875638,1.7104,3825.3,3825.2,1.3015]
[1754579875833,0.9429,3825.3,3825.2,1.3015]
[1754579876033,1.4137,3825.3,3825.2,1.3015]
[1754579876234,1.4137,3825.3,3825.2,1.7248]
[1754579876535,1.7104,3825.3,3825.2,1.7248]
[1754579876837,1.4137,3825.3,3825.2,2.2317]
[1754579877544,1.1376,3825.3,3825.2,2.2317]
[1754579877739,1.4137,3825.3,3825.2,2.2317]
[1754579878436,1.0246,3825.2,3824.6,0.52279]
[1754579878739,1.0246,3825.2,3822.9,0.2089299]
[1754579878740,1.7104,3824.5,3824.4,0.52282]
[1754579878934,1.7104,3824.5,3824.4,0.80932]
[1754579879331,1.7104,3824.5,3824.4,0.99982]
[1754579879542,1.4137,3824.5,3824.4,2.23182]
[1754579880042,1.1376,3824.9,3824.8,0.4923]
[1754579880242,1.1376,3824.9,3824.8,1.50417]
[1754579880532,1.4343,3824.9,3824.8,1.30157]
[1754579880728,1.7104,3824.9,3824.8,1.92747]
[1754579881536,1.7104,3824.9,3824.7,0.52278]
[1754579881737,0.2761,3825.6,3825.1,0.2865]
[1754579882037,1.0,3826.0,3825.9,0.52262]
[1754579882236,1.0,3826.0,3825.9,1.53672]
[1754579882637,1.2761,3826.0,3825.9,1.53672]
[1754579882843,1.7279,3826.0,3825.9,1.53672]
[1754579883041,1.7279,3826.0,3825.9,1.23242]
[1754579883841,1.7279,3826.0,3825.9,1.53672]
[1754579885832,1.0,3826.0,3825.9,1.53672]
[1754579887239,1.7279,3826.0,3825.9,1.53672]
[1754579887446,2.4137,3826.0,3825.9,2.23162]
[1754579887845,2.4137,3826.0,3825.6,1.30665]
[1754579887846,0.6858,3825.5,3825.4,1.2046]
[1754579888049,1.4137,3825.5,3825.4,1.72729]
[1754579888243,1.8401,3826.0,3825.9,0.52262]
[1754579888546,2.7104,3826.0,3825.9,0.477]
[1754579889343,2.4137,3826.0,3825.9,1.2857]
[1754579889546,2.4137,3826.0,3825.9,1.709]
[1754579889944,2.4137,3826.0,3825.9,1.4047]
[1754579890248,2.4137,3826.0,3825.9,1.709]
[1754579890845,2.4137,3826.0,3825.9,1.4047]
[1754579891052,1.7104,3825.9,3825.8,0.52263]
[1754579891742,1.7104,3825.9,3825.8,0.80913]
[1754579892450,1.1376,3825.2,3825.1,0.477]
[1754579892749,1.7104,3825.2,3825.1,0.52273]
[1754579893050,1.4018,3825.6,3825.5,1.91757]
[1754579893351,1.4018,3825.6,3825.5,2.20707]
[1754579894651,1.6947,3825.6,3825.5,0.52267]
[1754579894848,1.6947,3825.6,3825.5,1.02197]
[1754579895045,1.4018,3825.6,3825.5,2.20707]
[1754579895648,1.0,3826.0,3825.9,0.52262]
[1754579895841,2.4018,3826.0,3825.9,1.30842]
[1754579896253,2.4018,3826.0,3825.9,2.20702]
[1754579898953,2.6947,3826.0,3825.9,1.30842]
[1754579899143,0.52254,3826.6,3826.2,0.302]
[1754579899346,0.4457,3826.3,3826.2,0.302]
[1754579899552,0.1856,3826.0,3825.9,0.302]
[1754579899749,0.4457,3826.0,3825.8,0.52263]
[1754579900252,0.4457,3826.0,3825.8,0.82463]
[1754579900452,0.4457,3826.0,3825.8,0.302]
[1754579900653,0.4457,3826.0,3825.8,0.82463]
[1754579900853,0.4457,3826.0,3825.9,0.302]
[1754579901158,0.8844,3826.3,3826.2,0.71988]
[1754579901451,0.8844,3826.3,3826.2,1.29588]
[1754579901658,0.8844,3826.3,3826.2,0.82458]
[1754579901957,0.8844,3826.3,3826.2,1.02188]
[1754579902154,0.4387,3826.3,3826.2,1.53268]
[1754579902348,1.24095442,3826.7,3826.2,1.53268]
[1754579902349,0.99462442,3826.7,3826.6,0.302]
[1754579902549,0.2762,3826.7,3826.6,0.302]
[1754579903052,0.4387,3826.7,3826.6,0.302]
[1754579903252,0.2762,3826.7,3826.2,0.302]
[1754579903444,0.1625,3826.2,3826.1,0.52259]
[1754579903649,0.4387,3826.0,3825.9,0.82462]
[1754579903850,0.2762,3825.9,3825.8,0.52263]
[1754579904057,0.4387,3825.9,3825.8,0.52263]
[1754579904244,0.4387,3825.9,3825.8,0.82463]
[1754579904849,0.4387,3825.9,3825.8,0.302]
[1754579905453,0.4387,3825.9,3825.8,1.0101]
[1754579905652,0.1625,3825.9,3825.8,1.0101]
[1754579905856,0.4387,3826.2,3826.0,0.7081]
[1754579906051,0.4387,3826.2,3826.1,1.5327]
[1754579906252,0.84707601,3826.2,3826.1,1.5327]
[1754579906645,0.84707601,3826.2,3826.1,0.8246]
[1754579906854,0.84707601,3826.2,3826.1,0.302]
[1754579909352,0.84707601,3826.2,3826.1,1.0101]
[1754579909958,1.29277601,3826.2,3826.1,1.2074]
[1754579910561,1.29277601,3826.2,3826.1,1.6844]
[1754579911154,1.29277601,3826.2,3826.1,1.2658]
[1754579911350,1.29277601,3826.2,3826.1,0.302]
[1754579911561,1.29277601,3826.2,3826.1,1.6844]
[1754579911863,0.40837601,3826.2,3826.1,1.6844]
[1754579913659,0.71842442,3826.9,3826.7,0.6743]
[1754579913855,0.40832248,3826.8,3826.7,1.19682]
[1754579914061,1.03262248,3826.8,3826.7,2.20692]
[1754579914260,0.40831798,3826.8,3826.7,2.20692]
[1754579916664,1.29271798,3826.8,3826.7,0.4993]
[1754579916866,1.29271798,3826.8,3826.7,0.302]
[1754579917059,1.29271798,3826.8,3826.7,1.6844]
[1754579917258,0.59391798,3826.8,3826.7,1.6844]
[1754579917557,0.40831798,3826.8,3826.7,1.6844]
[1754579919170,1.29271798,3826.8,3826.7,1.6844]
[1754579919366,0.40831798,3826.8,3826.7,1.6844]
[1754579920463,1.29271798,3826.8,3826.7,1.6844]
[1754579920664,1.29271798,3826.8,3826.7,0.302]
[1754579921060,1.29271798,3826.8,3826.7,0.4993]
[1754579921260,0.75641798,3826.8,3826.7,1.6844]
[1754579921566,1.29271798,3826.8,3826.7,1.6844]
[1754579921866,0.59391798,3826.8,3826.7,1.6844]
[1754579922365,1.03261798,3826.8,3826.7,1.6844]
[1754579922665,1.29271798,3826.8,3826.7,1.6844]
[1754579923169,0.40831798,3826.8,3826.7,1.6844]
[1754579923557,0.40828051,3826.8,3826.7,2.24713]
[1754579925066,1.29738051,3826.8,3826.7,2.24713]
[1754579925657,0.40828051,3826.8,3826.7,2.24713]
[1754579926863,0.54336892,3826.8,3826.7,2.24713]
[1754579931975,0.51891474,3826.8,3826.7,2.24713]
[1754579932475,0.70691474,3826.8,3826.7,2.24713]
[1754579932772,0.51891474,3826.8,3826.7,2.24713]
[1754579935061,1.40801474,3826.8,3826.7,1.2252]
[1754579935269,1.40801474,3826.8,3826.7,0.2985]
[1754579936071,1.40801474,3826.8,3826.7,0.5008]
[1754579936267,1.40801474,3826.8,3826.7,0.9805]
[1754579936466,1.40801474,3826.8,3826.7,1.2776]
[1754579936667,1.40801474,3826.8,3826.7,0.7782]
[1754579936969,1.40801474,3826.8,3826.7,0.2985]
[1754579938569,0.4403,3826.7,3826.6,0.52257]
[1754579938774,0.4403,3826.7,3826.2,0.2971]
[1754579938775,0.4488,3826.3,3826.2,0.52264]
[1754579938975,0.83262633,3826.3,3826.2,0.52264]
[1754579939171,0.83262633,3826.3,3826.0,0.52265]
[1754579939369,0.4488,3826.1,3826.0,0.82115]
[1754579939572,1.27292633,3826.1,3826.0,0.82115]
[1754579939769,1.40801474,3826.1,3826.0,1.30085]
[1754579940569,1.40801474,3826.1,3826.0,1.80025]
[1754579940770,0.51891474,3826.1,3826.0,2.24725]
[1754579940974,0.51770892,3826.1,3826.0,2.24725]
[1754579943471,0.86870892,3826.1,3826.0,2.24725]
[1754579943781,1.40680892,3826.1,3826.0,2.24725]
[1754579944184,0.70570892,3826.1,3826.0,2.24725]
[1754579944977,1.40680892,3826.1,3826.0,0.2985]
[1754579945180,0.4488,3825.9,3825.8,1.2323]
[1754579945371,1.27172051,3825.9,3825.8,2.6584]
[1754579945574,1.27172051,3825.9,3825.8,1.7246]
[1754579945775,1.40680892,3825.9,3825.8,1.7246]
[1754579947280,0.51770892,3825.9,3825.8,1.7246]
[1754579948378,1.40680892,3825.9,3825.8,1.7246]
[1754579949076,1.34971308,3825.9,3825.8,1.7246]
[1754579949374,1.34971308,3825.9,3825.8,1.2252]
[1754579949578,1.34966922,3825.9,3825.8,1.7246]
[1754579949974,0.188,3825.7,3825.6,1.2477]
[1754579950174,1.41946945,3825.7,3825.6,0.7798]
[1754579950379,1.41946945,3825.7,3824.4,0.25698236]
[1754579950380,1.3068,3825.6,3824.5,0.2985]
[1754579950580,1.30689,3825.3,3824.5,0.2985]
[1754579950776,0.52282,3824.8,3823.9,0.2971]
[1754579950983,0.32548081,3824.7,3824.0,0.447]
[1754579951183,0.84834081,3824.6,3824.1,1.50341]
[1754579951385,0.32548081,3824.5,3824.2,0.2985]
[1754579951677,0.13508841,3824.9,3824.2,0.2985]
[1754579951678,0.13508841,3824.9,3824.2,0.8214]
[1754579951884,0.13508841,3824.6,3824.5,1.7246]
[1754579952083,0.46016903,3824.6,3824.5,1.7246]
[1754579952278,0.13508841,3824.6,3824.5,1.7246]
[1754579952885,0.32508062,3825.1,3825.0,2.24739]
[1754579953484,0.35,3825.3,3825.2,1.694]
[1754579953678,0.67508062,3825.3,3825.2,1.694]
[1754579954284,0.35,3825.3,3825.2,1.2704]
[1754579954686,0.67508062,3825.3,3825.2,1.694]
[1754579954984,0.2154,3825.3,3825.2,1.694]
[1754579955493,0.32508062,3825.6,3825.5,2.21673]
[1754579955787,0.1346,3825.7,3825.6,0.4909]
[1754579955980,0.45968062,3825.7,3825.6,0.989]
[1754579956288,0.1346,3825.7,3825.6,0.989]
[1754579956487,0.1346,3825.7,3825.6,1.2704]
[1754579956787,0.35,3825.7,3825.6,1.694]
[1754579957288,0.35,3826.0,3825.9,1.2704]
[1754579957484,0.67508062,3826.0,3825.9,1.694]
[1754579957686,0.35,3826.0,3825.9,1.694]
[1754579957883,0.67508062,3826.0,3825.9,1.694]
[1754579958084,0.65698759,3826.0,3825.9,1.694]
[1754579958278,0.35,3826.0,3825.9,1.694]
[1754579958488,0.65698759,3826.0,3825.9,1.694]
[1754579958687,0.44158759,3826.2,3826.1,1.694]
[1754579959881,0.65698759,3826.2,3826.1,0.2881]
[1754579960084,0.52268,3825.8,3825.7,0.7723]
[1754579960386,0.52272,3825.5,3825.4,0.2814]
[1754579960589,0.65698759,3825.5,3825.4,1.2704]
[1754579960786,0.30698759,3825.6,3825.4,2.21673]
[1754579961089,0.82973465,3825.7,3825.5,1.694]
[1754579961291,0.1346,3825.6,3825.5,2.21671]
[1754579961589,0.44162465,3825.6,3825.5,2.21671]
[1754579961790,0.1346,3825.6,3825.5,2.21671]
[1754579961986,0.30702465,3825.6,3825.5,2.21671]
[1754579962282,1.30652,3826.4,3825.5,2.21671]
[1754579962283,18.138,3826.5,3826.2,1.93522]
[1754579962486,1.06977379,3826.4,3826.3,1.694]
[1754579962685,0.35355184,3826.4,3826.3,1.694]
[1754579964190,0.70355184,3826.4,3826.3,1.694]
[1754579966789,0.70355184,3826.4,3826.3,0.2881]
[1754579966989,0.66458879,3826.4,3826.3,0.2881]
[1754579967388,0.66458879,3826.4,3826.3,1.694]
[1754579967589,0.66465279,3826.4,3826.3,1.694]
[1754579968590,0.31465279,3826.4,3826.3,1.694]
[1754579969089,0.44905279,3826.4,3826.3,1.694]
[1754579969689,0.31465279,3826.4,3826.3,1.694]
[1754579970186,0.00995279,3826.4,3826.3,1.694]
[1754579972294,19.26635,3826.8,3826.7,0.7009]
[1754579972491,18.65855,3826.8,3826.7,1.694]
[1754579972796,19.48145,3826.8,3826.7,1.694]
[1754579973393,19.48145,3826.8,3826.7,0.2881]
[1754579973795,19.48145,3826.8,3826.7,0.7903]
[1754579973997,19.48145,3826.8,3826.7,1.2704]
[1754579974195,19.48145,3826.8,3826.7,1.694]
[1754579974498,18.9589,3826.8,3826.7,1.694]
[1754579975399,19.67619832,3826.8,3826.7,1.694]
[1754579975794,19.67619832,3826.8,3826.7,1.2704]
[1754579975997,19.67619832,3826.8,3826.7,0.989]
[1754579976596,19.67619832,3826.8,3826.7,1.2704]
[1754579976795,0.4043,3826.6,3825.9,1.30666]
[1754579977102,1.21102,3827.0,3826.9,1.694]
[1754579977297,0.1892,3826.5,3826.4,1.694]
[1754579977499,0.8229,3826.5,3826.4,1.694]
[1754579978198,0.8229,3826.5,3826.4,2.2166]
[1754579978503,0.5387,3826.5,3826.4,2.2166]
[1754579979101,0.1892,3826.5,3826.4,2.2166]
[1754579979298,18.134,3826.6,3826.5,0.705]
[1754579979503,0.1892,3826.7,3826.6,1.22347]
[1754579979703,1.34541,3827.1,3827.0,1.694]
[1754579979903,19.47841,3827.1,3827.0,1.694]
[1754579980205,20.19549392,3827.1,3827.0,1.694]
[1754579980598,0.5387,3827.1,3827.0,1.694]
[1754579980894,0.52245,3827.5,3827.4,0.52246]
[1754579981101,19.34295,3827.5,3827.4,2.21646]
[1754579981301,20.05829844,3827.5,3827.4,2.21646]
[1754579981803,20.19269844,3827.5,3827.4,2.21646]
[1754579982002,19.47735,3827.5,3827.4,2.21646]
[1754579982206,20.50163037,3827.5,3827.4,2.21646]
[1754579982403,20.48910472,3827.5,3827.4,1.694]
[1754579982702,20.48910472,3827.5,3827.4,0.7903]
[1754579982897,20.48910472,3827.5,3827.4,0.2881]
[1754579983102,0.8343,3827.1,3827.0,1.00981]
[1754579983397,19.26233349,3827.1,3827.0,1.29781]
[1754579983594,19.26233349,3827.1,3827.0,0.7753]
[1754579984003,19.26233349,3827.1,3827.0,0.4873]
[1754579984305,0.8343,3826.7,3826.6,0.7578]
[1754579984497,18.9653,3826.7,3826.6,0.7578]
[1754579984799,19.26133349,3826.7,3826.6,1.4013]
[1754579984999,18.62473349,3826.7,3826.6,1.6858]
[1754579985206,18.42703349,3826.7,3826.6,1.6858]
[1754579985601,18.42711774,3826.7,3826.6,1.6858]
[1754579986007,18.83991774,3826.7,3826.6,1.6858]
[1754579986204,19.26141774,3826.7,3826.6,1.6858]
[1754579987407,18.42711774,3826.7,3826.6,1.6858]
[1754579987596,0.29611774,3826.7,3826.6,1.6858]
[1754579987802,18.42611774,3826.7,3826.6,1.6858]
[1754579988104,0.29611774,3826.7,3826.6,1.6858]
[1754579992197,0.52247,3827.4,3827.3,0.6662]
[1754579992401,19.84977,3827.4,3827.3,1.6858]
[1754579992706,20.56645339,3827.4,3827.3,0.2845]
[1754579992902,1.72182,3827.0,3826.9,0.7488]
[1754579993107,19.3273,3827.0,3826.9,1.2297]
[1754579993911,19.3273,3827.0,3826.9,1.6858]
[1754579994301,19.0402,3827.0,3826.9,1.6858]
[1754579994712,0.9122,3827.0,3826.9,1.6858]
[1754579995012,19.0402,3827.0,3826.9,1.6858]
[1754579995212,1.1993,3827.0,3826.9,1.6858]
[1754579995408,19.3263,3827.0,3826.9,1.6858]
[1754579997213,1.1993,3827.0,3826.9,1.6858]
[1754579997414,19.3253,3827.0,3826.9,1.6858]
[1754579999114,0.4817,3826.6,3826.5,0.6662]
[1754579999323,1.1993,3826.6,3826.5,1.4013]
[1754579999915,1.1993,3826.6,3826.5,1.6858]
[1754580000913,0.7688,3826.9,3826.8,1.18874]
[1754580001109,0.284,3827.1,3827.0,1.6858]
[1754580001313,0.4817,3827.1,3827.0,1.6858]
[1754580001620,19.3243,3827.1,3827.0,1.6858]
[1754580001811,20.04171449,3827.1,3827.0,1.4068]
[1754580002012,20.04171449,3827.1,3827.0,1.6858]
[1754580002211,20.04071449,3827.1,3827.0,1.6858]
[1754580002511,20.04071449,3827.1,3826.7,0.80155]
[1754580002716,1.1993,3826.8,3826.7,0.98685]
[1754580002911,19.3233,3826.8,3826.7,0.99585]
[1754580003215,19.3233,3826.8,3826.7,2.20835]
[1754580003413,19.0362,3826.8,3826.7,2.20835]
[1754580003916,18.124,3826.8,3826.7,2.20835]
[1754580004109,0.7688,3827.1,3827.0,2.20831]
[1754580004309,18.92965711,3827.1,3827.0,2.20831]
[1754580004514,19.64721869,3827.1,3827.0,2.20831]
[1754580004913,18.44695711,3827.1,3827.0,2.20831]
[1754580005908,18.41672068,3827.1,3827.0,2.20831]
[1754580006109,19.32892068,3827.1,3827.0,2.20831]
[1754580006315,0.49142068,3827.1,3827.0,2.20831]
[1754580006512,0.29372068,3827.1,3827.0,2.20831]
[1754580006810,0.29372068,3827.1,3826.7,1.30639]
[1754580006811,0.71759022,3828.3,3828.0,0.6662]
[1754580007006,0.71759022,3828.8,3828.3,0.6662]
[1754580007208,0.9523,3828.9,3828.8,1.6858]
[1754580007407,0.9495,3828.9,3828.2,0.7406]
[1754580007717,1.3828,3828.3,3828.2,1.6858]
[1754580008215,1.3828,3828.3,3826.4,4.18960291]
[1754580008514,1.1851,3827.3,3827.2,0.4733]
[1754580008711,0.6652,3827.3,3827.2,0.7578]
[1754580009112,0.6652,3827.3,3827.1,0.80149]
[1754580009314,1.3828,3826.7,3826.6,0.2845]
[1754580009515,1.6147,3826.7,3826.6,0.2845]
[1754580010217,1.3828,3826.7,3826.6,0.7488]
[1754580010413,1.3828,3826.7,3826.6,1.2297]
[1754580010712,1.3828,3826.7,3826.6,1.6858]
[1754580011511,18.121,3826.9,3826.8,0.6662]
[1754580011813,0.614,3826.9,3826.8,1.6858]
[1754580012417,1.0957,3826.9,3826.8,1.6858]
[1754580012816,0.7176,3826.9,3826.5,0.6662]
[1754580013017,1.4045,3826.7,3826.6,1.7062]
[1754580013213,19.7505,3827.1,3827.0,0.1953]
[1754580013412,20.048,3827.1,3827.0,0.4818]
[1754580013813,20.2799,3827.1,3827.0,0.4818]
[1754580014518,20.048,3827.1,3827.0,0.4818]
[1754580014914,20.2799,3827.1,3827.0,0.2865]
[1754580015622,1.4045,3826.7,3826.6,0.4995]
[1754580015816,1.4045,3826.7,3826.6,1.4197]
[1754580016019,18.121,3827.1,3826.9,1.7062]
[1754580016214,18.121,3827.1,3827.0,1.0144]
[1754580016421,18.121,3827.1,3827.0,1.7062]
[1754580016716,18.121,3827.5,3827.4,1.7062]
[1754580017014,18.8368513,3827.5,3827.4,1.7062]
[1754580017219,18.121,3827.5,3827.4,1.7062]
[1754580017814,18.121,3827.5,3827.4,2.22866]
[1754580018021,18.5516,3827.5,3827.4,2.22866]
[1754580018322,18.938,3827.5,3827.4,2.22866]
[1754580018519,19.5255,3827.5,3827.4,2.22866]
[1754580018719,19.84264714,3827.5,3827.4,2.22866]
[1754580018918,19.84264714,3827.5,3827.4,1.7062]